fUST/lending_fUST_20250716
["ID","MTS","AMOUNT","RATE_DAILY","PERIOD"]
[372399704,1752625838501,-460.0,0.00020999,2]
[372399705,1752625838510,-201.94293289,0.00020999,2]
[372399706,1752625838520,-460.0,0.00020999,2]
[372399707,1752625838529,-2000.0,0.00021,14]
[372399708,1752625838539,-2000.0,0.00021,14]
[372399709,1752625838549,-2000.0,0.00021,14]
[372399710,1752625838559,-2000.0,0.00021,14]
[372399711,1752625838568,-167.322,0.00021082,2]
[372399712,1752625838578,-460.0,0.00021082,2]
[372399713,1752625838588,-460.0,0.0002109,2]
[372399714,1752625838598,-460.0,0.0002109,2]
[372399715,1752625838607,-460.0,0.0002109,2]
[372399716,1752625838617,-460.0,0.0002109,2]
[372399717,1752625838626,-460.0,0.0002109,2]
[372399718,1752625838636,-460.0,0.0002109,2]
[372399719,1752625838645,-460.0,0.0002109,2]
[372399720,1752625838654,-460.0,0.0002109,2]
[372399721,1752625838664,-460.0,0.0002109,2]
[372399722,1752625838674,-460.0,0.0002109,2]
[372399723,1752625838683,-460.0,0.0002109,2]
[372399724,1752625838692,-460.0,0.0002109,2]
[372399725,1752625838702,-460.0,0.0002109,2]
[372399726,1752625838711,-334.86715631,0.0002109,2]
[372399727,1752625838721,-460.0,0.0002109,2]
[372399728,1752625838731,-150.50456212,0.0002109,2]
[372399729,1752625838740,-260.10299595,0.0002109,2]
[372399730,1752625838750,-594.7154738,0.0002109,2]
[372399731,1752625838759,-460.0,0.0002109,2]
[372399732,1752625838770,-460.0,0.0002109,2]
[372399733,1752625838780,-460.0,0.0002109,2]
[372399734,1752625838790,-460.0,0.0002109,2]
[372399735,1752625838800,-571.06,0.0002109,2]
[372399736,1752625838947,-460.0,0.0002109,2]
[372399737,1752625838959,-460.0,0.0002109,2]
[372399738,1752625838971,-460.0,0.0002109,2]
[372399739,1752625838980,-460.0,0.0002109,2]
[372399740,1752625838990,-460.0,0.0002109,2]
[372399741,1752625839000,-460.0,0.0002109,2]
[372399742,1752625839012,-460.0,0.0002109,2]
[372399743,1752625839022,-460.0,0.0002109,2]
[372399744,1752625839033,-460.0,0.0002109,2]
[372399745,1752625839043,-158.40065603,0.0002109,2]
[372399746,1752625839054,-460.0,0.0002109,2]
[372399747,1752625839063,-460.0,0.0002109,2]
[372399748,1752625839073,-314.2268854,0.0002109,2]
[372399749,1752625839082,-218.70570792,0.0002109,2]
[372399750,1752625839092,-460.0,0.00021091,2]
[372399751,1752625839101,-510.38,0.00021091,2]
[372399752,1752625839110,-460.0,0.00021356,2]
[372399753,1752625839120,-510.0491602,0.00021364,2]
[372399754,1752625839130,-460.0,0.00021364,2]
[372399755,1752625839140,-460.0,0.00021365,2]
[372399756,1752625839149,-558.47451436,0.00021543,2]
[372399757,1752625839159,-350.82,0.0002163,2]
[372399758,1752625839169,-460.0,0.00021638,2]
[372399759,1752625839179,-334.15,0.00021639,2]
[372399760,1752625839190,-319.95747506,0.00021686,2]
[372399761,1752625839200,-460.0,0.00021912,2]
[372399762,1752625839209,-1091.0,0.00022059,2]
[372399763,1752625839218,-420.0,0.0002206,2]
[372399764,1752625839228,-460.0,0.00022186,2]
[372399765,1752625839238,-558.47451436,0.00022186,2]
[372399766,1752625839247,-176.62,0.0002246,2]
[372399767,1752625839256,-230.3975474,0.0002268,2]
[372399768,1752625839266,-558.47451436,0.0002283,2]
[372399769,1752625839276,-207.4,0.00022939,2]
[372399770,1752625839285,-500.0,0.00023,14]
[372399771,1752625839295,-558.47451436,0.00023474,2]
[372399772,1752625839305,-1098.12335743,0.000239,2]
[372399773,1752625839314,-157.3,0.00024,14]
[372399774,1752625839324,-285.0,0.00024015,2]
[372399775,1752625839334,-558.47451436,0.00024118,2]
[372399776,1752625839343,-473.1,0.000242,2]
[372399777,1752625839352,-215.0738,0.00024308,2]
[372399778,1752625839362,-1107.97,0.0002464,10]
[372399779,1752625839371,-9117.22519304,0.0002465,2]
[372399780,1752625839381,-264225.50699821,0.0002465,2]
[372399781,1752625839390,-501.57966218,0.0002465,2]
[372399782,1752625839399,-185.5043745,0.00024658,2]
[372399783,1752625839410,-185.88181984,0.00024658,2]
[372399784,1752625839419,-551.04073905,0.0002469,10]
[372399785,1752625839430,-192.0,0.00024704,2]
[372399786,1752625839443,-558.47451436,0.00024761,2]
[372399787,1752625839453,-12928.91473705,0.00024774,2]
[372399788,1752625839462,-285.31612638,0.00024896,2]
[372399789,1752625839472,-1194.71182291,0.000249,2]
[372399790,1752625839481,-1194.71182285,0.00024956,2]
[372399791,1752625839491,-648.63,0.0002498,3]
[372399792,1752625839500,-386560.73234,0.0002498,2]
[372399793,1752625839510,-189735.06363772,0.0002499,4]
[372399826,1752625846376,-460.0,0.00020265,2]
[372399827,1752625846386,-362.16,0.00020539,2]
[372399828,1752625846398,-177.84,0.0002498,10]
[372399829,1752625846410,-1784.26,0.0002498,10]
[372399830,1752625846420,-21215.86149658,0.0002499,4]
[372399831,1752625930000,1000.0,0.00025505,120]
[372399832,1752625944994,1000.0,0.00025505,120]
[372399833,1752625951510,1000.0,0.00025505,120]
[372399834,1752625959916,1010.0,0.00025505,120]
[372399836,1752626217750,3039.0,0.00027397,120]
[372399839,1752626730167,-160.0,0.00020259,2]
[372399840,1752626730192,-300.0,0.00020264,2]
[372399841,1752626730212,-300.0,0.00020264,2]
[372399842,1752626730233,-300.0,0.00020264,2]
[372399843,1752626730254,-283.63784185,0.00020264,2]
[372399845,1752626741084,-195.79208783,0.00020165,2]
[372399846,1752626741107,-16.36215815,0.00020264,2]
[372399847,1752626741129,-300.0,0.00020264,2]
[372399848,1752626741162,-1200.0,0.00020264,2]
[372399849,1752626741190,-460.0,0.00020265,2]
[372399850,1752626741213,-186.86289956,0.00020265,2]
[372399851,1752626743895,217.909565,0.00013699,2]
[372399852,1752626815027,1000.0,0.000185,2]
[372399853,1752626830139,-186.45779353,0.00020164,2]
[372399854,1752626830161,-217.909565,0.00020187,2]
[372399855,1752626830182,-300.0,0.00020264,2]
[372399856,1752626830207,-460.0,0.00020265,2]
[372399857,1752626830227,-132.42851165,0.00020265,2]
[372399858,1752626834098,-376.6106501,0.00020265,2]
[372399859,1752626834119,-460.0,0.00020265,2]
[372399860,1752626834140,-460.0,0.00020265,2]
[372399861,1752626834161,-460.0,0.00020265,2]
[372399862,1752626834181,-460.0,0.00020266,2]
[372399863,1752626834204,-460.0,0.00020266,2]
[372399864,1752626834225,-460.0,0.00020266,2]
[372399865,1752626834245,-460.0,0.00020266,2]
[372399866,1752626834270,-460.0,0.00020266,2]
[372399867,1752626834290,-460.0,0.00020266,2]
[372399868,1752626834312,-460.0,0.00020266,2]
[372399869,1752626834334,-460.0,0.00020266,2]
[372399870,1752626834363,-320.35291058,0.00020266,2]
[372399871,1752626834386,-508.84614185,0.00020539,2]
[372399872,1752626834408,-460.0,0.00020539,2]
[372399873,1752626834428,-460.0,0.00020539,2]
[372399874,1752626834451,-152.55563557,0.00020714,2]
[372399875,1752626834471,-246.90285241,0.00020808,2]
[372399876,1752626834491,-188.05,0.00020808,2]
[372399877,1752626834513,-591.3739097,0.00020808,2]
[372399878,1752626834533,-460.0,0.00020808,2]
[372399879,1752626834553,-460.0,0.00020808,2]
[372399880,1752626834574,-460.0,0.00020808,2]
[372399881,1752626834595,-531.68964545,0.00020808,2]
[372399882,1752626834614,-460.0,0.00020808,2]
[372399883,1752626834635,-426.83112576,0.00020808,2]
[372399884,1752626849089,-77.29887424,0.00020808,2]
[372399885,1752626849109,-500.0,0.00020808,2]
[372399886,1752626849129,-460.0,0.00020808,2]
[372399887,1752626849154,-460.0,0.00020808,2]
[372399888,1752626849175,-460.0,0.00020808,2]
[372399889,1752626849195,-460.0,0.00020808,2]
[372399890,1752626849216,-460.0,0.00020808,2]
[372399891,1752626849235,-263.01,0.00020808,2]
[372399892,1752626849255,-460.0,0.00020808,2]
[372399893,1752626849275,-460.0,0.00020808,2]
[372399894,1752626849295,-460.0,0.00020808,2]
[372399895,1752626849315,-460.0,0.00020813,2]
[372399896,1752626849336,-1247.33,0.00020813,2]
[372399897,1752626849362,-460.0,0.00020813,2]
[372399898,1752626849382,-305.61239685,0.00020813,2]
[372399899,1752626849405,-500.0,0.00020813,2]
[372399900,1752626849427,-531.07151401,0.00020813,2]
[372399901,1752626849449,-394.33582522,0.00020813,2]
[372399902,1752626849469,-460.0,0.00020813,2]
[372399903,1752626849490,-460.0,0.00020814,2]
[372399904,1752626849512,-460.0,0.00020814,2]
[372399905,1752626849534,-460.0,0.00020814,2]
[372399906,1752626849555,-460.0,0.00020814,2]
[372399907,1752626849575,-460.0,0.00020814,2]
[372399908,1752626849596,-460.0,0.00020814,2]
[372399909,1752626849616,-483.54166121,0.00020814,2]
[372399910,1752626849636,-48.22086621,0.00020814,2]
[372399915,1752627024917,300.0,0.000255,120]
[372399951,1752627038424,-152.55563554,0.00020716,2]
[372399952,1752627038435,-460.0,0.00020808,2]
[372399953,1752627038445,-300.0,0.00020812,2]
[372399954,1752627038454,-904.0,0.00020812,2]
[372399955,1752627038464,-460.0,0.00020813,2]
[372399956,1752627038473,-460.0,0.00020813,2]
[372399957,1752627038482,-460.0,0.00020813,2]
[372399958,1752627038493,-460.0,0.00020813,2]
[372399959,1752627038503,-460.0,0.00020813,2]
[372399960,1752627038512,-316.75701291,0.00020813,2]
[372399961,1752627038525,-143.24298709,0.00020813,2]
[372399962,1752627038535,-399.28,0.00020813,2]
[372399963,1752627038546,-460.0,0.00020813,2]
[372399964,1752627038555,-460.78760463,0.00020813,2]
[372399965,1752627038565,-594.18,0.00020814,2]
[372399966,1752627038575,-420.0,0.00020814,2]
[372399967,1752627038584,-460.0,0.00020814,2]
[372399968,1752627038594,-460.0,0.00020814,2]
[372399969,1752627038603,-460.0,0.00020814,2]
[372399970,1752627038612,-460.0,0.00020814,2]
[372399971,1752627038621,-460.0,0.00020814,2]
[372399972,1752627038631,-368.35324566,0.00020814,2]
[372399973,1752627038640,-460.0,0.00020814,2]
[372399974,1752627038650,-460.0,0.00020814,2]
[372399975,1752627038659,-460.0,0.00020814,2]
[372399976,1752627038669,-460.0,0.00020814,2]
[372399977,1752627038678,-460.0,0.00020814,2]
[372399978,1752627038688,-460.0,0.00020814,2]
[372399979,1752627038697,-460.0,0.00020814,2]
[372399980,1752627038707,-460.0,0.00020814,2]
[372399981,1752627038716,-460.0,0.00020814,2]
[372399982,1752627038726,-411.77913379,0.00020814,2]
[372399983,1752627038735,-460.0,0.00020814,2]
[372399984,1752627038744,-460.0,0.00020814,2]
[372399985,1752627038754,-460.0,0.00020814,2]
[372399986,1752627038763,-460.0,0.00020814,2]
[372399987,1752627038773,-460.0,0.00020814,2]
[372399988,1752627038782,-460.0,0.00020814,2]
[372399989,1752627038793,-460.0,0.00020814,2]
[372399990,1752627038803,-460.0,0.00020814,2]
[372399991,1752627038813,-460.0,0.00020814,2]
[372399992,1752627038822,-460.0,0.00020814,2]
[372399993,1752627038831,-460.0,0.00020814,2]
[372399994,1752627038841,-460.0,0.00020814,2]
[372399995,1752627038850,-460.0,0.00020814,2]
[372399996,1752627038860,-460.0,0.00020814,2]
[372399997,1752627038869,-460.0,0.00020814,2]
[372399998,1752627038879,-460.0,0.00020814,2]
[372399999,1752627038888,-460.0,0.00020814,2]
[372400000,1752627038897,-460.61725283,0.00020814,2]
[372400001,1752627038907,-460.0,0.00020814,2]
[372400002,1752627038916,-460.0,0.00020814,2]
[372400003,1752627038926,-460.0,0.00020814,2]
[372400004,1752627038935,-460.0,0.00020814,2]
[372400005,1752627038944,-460.0,0.00020814,2]
[372400006,1752627038953,-460.0,0.00020814,2]
[372400007,1752627038962,-460.0,0.00020814,2]
[372400008,1752627038971,-460.0,0.00020814,2]
[372400009,1752627038985,-460.0,0.00020815,2]
[372400010,1752627038994,-460.0,0.00020815,2]
[372400011,1752627039004,-460.0,0.00020815,2]
[372400012,1752627039013,-164.70512061,0.00020815,2]
[372400013,1752627039023,-460.0,0.00020815,2]
[372400014,1752627039032,-460.0,0.00020815,2]
[372400015,1752627039043,-273.13710044,0.00020815,2]
[372400016,1752627039053,-460.0,0.00020815,2]
[372400017,1752627039062,-278.14,0.00020816,2]
[372400018,1752627039071,-460.0,0.00020816,2]
[372400019,1752627039081,-460.0,0.00020816,2]
[372400020,1752627039090,-460.0,0.00020816,2]
[372400021,1752627039099,-460.0,0.00020816,2]
[372400022,1752627039108,-460.0,0.00020816,2]
[372400023,1752627039118,-530.94,0.00020816,2]
[372400024,1752627039127,-460.0,0.00020816,2]
[372400025,1752627039136,-460.0,0.00020816,2]
[372400026,1752627039145,-460.0,0.00020816,2]
[372400027,1752627039155,-460.0,0.00020816,2]
[372400028,1752627039165,-460.0,0.00020816,2]
[372400029,1752627039175,-460.0,0.00020816,2]
[372400030,1752627039184,-460.0,0.00020816,2]
[372400031,1752627039194,-379.38,0.00020816,2]
[372400032,1752627039203,-460.0,0.00020816,2]
[372400033,1752627039213,-460.0,0.00020816,2]
[372400034,1752627039223,-460.0,0.00020816,2]
[372400035,1752627039233,-360.36331715,0.00020816,2]
[372400036,1752627039242,-460.87966923,0.00020816,2]
[372400037,1752627039252,-460.0,0.00020816,2]
[372400038,1752627039261,-460.0,0.00020816,2]
[372400039,1752627039271,-460.0,0.00020816,2]
[372400040,1752627039281,-460.0,0.00020816,2]
[372400041,1752627039291,-460.0,0.00020816,2]
[372400042,1752627039301,-343.59730492,0.00020816,2]
[372400043,1752627039311,-460.0,0.00020816,2]
[372400044,1752627039320,-460.0,0.00020816,2]
[372400045,1752627039329,-460.0,0.00020816,2]
[372400046,1752627039338,-460.0,0.00020816,2]
[372400047,1752627039348,-460.0,0.00020816,2]
[372400048,1752627039357,-460.0,0.00020816,2]
[372400049,1752627039367,-565.14,0.00020816,2]
[372400050,1752627039376,-460.0,0.00020816,2]
[372400051,1752627039385,-500.0,0.00020816,2]
[372400052,1752627039395,-418.9788472,0.00020816,2]
[372400053,1752627039507,-41.0211528,0.00020816,2]
[372400054,1752627039517,-460.0,0.00020816,2]
[372400055,1752627039526,-163.82,0.00020817,2]
[372400056,1752627039536,-460.0,0.00020817,2]
[372400057,1752627039546,-262.8,0.00020817,2]
[372400058,1752627039556,-460.0,0.00020817,2]
[372400059,1752627039565,-460.0,0.00020817,2]
[372400060,1752627039575,-460.0,0.00020817,2]
[372400061,1752627039584,-460.0,0.00020817,2]
[372400062,1752627039594,-167.322,0.00020915,2]
[372400063,1752627039604,-500.0,0.00020999,2]
[372400064,1752627039614,-1247.33,0.00021087,2]
[372400065,1752627039623,-240.33,0.00021087,2]
[372400066,1752627039633,-460.0,0.00021088,2]
[372400067,1752627039643,-460.0,0.00021088,2]
[372400068,1752627039652,-460.0,0.00021088,2]
[372400069,1752627039662,-495.9,0.00021088,2]
[372400070,1752627039671,-460.0,0.00021088,2]
[372400071,1752627039681,-460.0,0.00021088,2]
[372400072,1752627039690,-460.0,0.00021088,2]
[372400073,1752627039700,-565.62,0.00021088,2]
[372400074,1752627039710,-460.0,0.00021088,2]
[372400075,1752627039719,-460.0,0.00021088,2]
[372400076,1752627039732,-460.0,0.00021088,2]
[372400077,1752627039742,-460.0,0.00021088,2]
[372400078,1752627039752,-460.0,0.00021088,2]
[372400079,1752627039761,-461.39993285,0.00021088,2]
[372400080,1752627039771,-460.0,0.00021088,2]
[372400081,1752627039780,-561.13,0.00021089,2]
[372400082,1752627039790,-460.0,0.0002109,2]
[372400083,1752627039799,-460.0,0.0002109,2]
[372400084,1752627039809,-460.0,0.0002109,2]
[372400085,1752627039819,-460.0,0.0002109,2]
[372400086,1752627039829,-460.0,0.0002109,2]
[372400087,1752627039839,-460.0,0.0002109,2]
[372400088,1752627039848,-460.0,0.0002109,2]
[372400089,1752627039858,-460.0,0.0002109,2]
[372400090,1752627039867,-460.0,0.0002109,2]
[372400091,1752627039877,-460.0,0.0002109,2]
[372400092,1752627039887,-410.61426934,0.0002109,2]
[372400093,1752627039897,-460.0,0.0002109,2]
[372400094,1752627039906,-460.0,0.0002109,2]
[372400095,1752627039916,-277.67,0.0002109,2]
[372400096,1752627039925,-460.0,0.0002109,2]
[372400097,1752627039935,-345.35,0.0002109,2]
[372400098,1752627039945,-460.0,0.0002109,2]
[372400099,1752627039955,-460.0,0.0002109,2]
[372400100,1752627039965,-460.0,0.0002109,2]
[372400101,1752627039975,-460.0,0.0002109,2]
[372400102,1752627039984,-205.08,0.0002109,2]
[372400103,1752627039993,-1247.33,0.00021361,2]
[372400105,1752627040003,-460.0,0.00021362,2]
[372400106,1752627040013,-460.0,0.00021362,2]
[372400107,1752627040022,-460.0,0.00021362,2]
[372400108,1752627040032,-234.2,0.00021362,2]
[372400109,1752627040041,-460.0,0.00021362,2]
[372400110,1752627040051,-460.0,0.00021362,2]
[372400111,1752627040061,-454.94,0.00021364,2]
[372400112,1752627040071,-1247.33,0.00021635,2]
[372400113,1752627040081,-460.0,0.00021636,2]
[372400114,1752627040092,-460.0,0.00021636,2]
[372400115,1752627040102,-460.0,0.00021636,2]
[372400116,1752627040112,-500.0,0.00021637,2]
[372400117,1752627040122,-152.55563554,0.00021889,2]
[372400118,1752627040131,-1247.33,0.00021909,2]
[372400119,1752627040141,-460.0,0.0002191,2]
[372400120,1752627040151,-516.25,0.0002191,2]
[372400122,1752627040161,-157.68,0.0002191,2]
[372400124,1752627040172,-10000.0,0.00022084,2]
[372400125,1752627040183,-1247.33,0.00022183,2]
[372400126,1752627040194,-460.0,0.00022184,2]
[372400127,1752627040205,-1247.33,0.00022457,2]
[372400128,1752627040216,-460.0,0.00022458,2]
[372400129,1752627040226,-1247.33,0.00022731,2]
[372400130,1752627040237,-460.0,0.00022732,2]
[372400131,1752627040247,-151.0,0.00022939,2]
[372400132,1752627040257,-151.0,0.00022939,2]
[372400133,1752627040267,-207.4,0.00022939,2]
[372400134,1752627040276,-151.0,0.00022939,2]
[372400135,1752627040286,-151.0,0.00022939,2]
[372400136,1752627040296,-151.0,0.00022939,2]
[372400137,1752627040306,-151.0,0.00022939,2]
[372400139,1752627040316,-151.0,0.00022939,2]
[372400140,1752627040326,-151.0,0.00022939,2]
[372400142,1752627040337,-151.0,0.00022939,2]
[372400143,1752627040347,-151.0,0.00022939,2]
[372400144,1752627040357,-151.0,0.00022939,2]
[372400145,1752627040366,-1247.33,0.00023005,2]
[372400146,1752627040375,-460.0,0.00023006,2]
[372400147,1752627040385,-152.55563554,0.00023062,2]
[372400148,1752627040395,-1247.33,0.00023279,2]
[372400149,1752627040405,-460.0,0.0002328,2]
[372400150,1752627040418,-1247.33,0.00023553,2]
[372400151,1752627040427,-460.0,0.00023554,2]
[372400152,1752627040437,-1635.08,0.00023817,10]
[372400153,1752627040446,-1247.33,0.00023827,2]
[372400154,1752627040456,-392.62,0.00023828,2]
[372400155,1752627040465,-1247.33,0.00024101,2]
[372400156,1752627040474,-152.55563554,0.00024234,2]
[372400157,1752627040484,-215.0738,0.00024308,2]
[372400158,1752627040494,-1247.33,0.00024375,2]
[372400159,1752627040503,-154.002659,0.00024402,2]
[372400160,1752627040608,-154.002659,0.0002443,10]
[372400161,1752627040618,-879.0,0.00024491,7]
[372400162,1752627040627,-425.79,0.000245,2]
[372400163,1752627040637,-1247.33,0.00024649,2]
[372400164,1752627040647,-375.37,0.00024657,2]
[372400165,1752627040656,-177.931191,0.00024685,2]
[372400166,1752627040665,-159.6475778,0.00024685,2]
[372400167,1752627040674,-575.5129765,0.00024685,2]
[372400168,1752627040684,-500.0,0.00024773,2]
[372400169,1752627040693,-154.002659,0.00024784,7]
[372400170,1752627040703,-215.50840239,0.00024868,2]
[372400171,1752627040712,-160.0,0.00024868,2]
[372400172,1752627040722,-226.57457096,0.00024873,2]
[372400173,1752627040732,-154.002659,0.00024876,20]
[372400174,1752627040741,-500.0,0.00024877,2]
[372400175,1752627040750,-320.92598355,0.00024887,2]
[372400176,1752627040761,-320.92598355,0.00024889,2]
[372400177,1752627040771,-320.92598355,0.00024892,2]
[372400178,1752627040781,-320.92598355,0.00024894,2]
[372400179,1752627040790,-320.92598355,0.00024896,2]
[372400180,1752627040801,-1194.71182291,0.000249,2]
[372400181,1752627040811,-500.0,0.00024904,2]
[372400182,1752627040821,-1247.33,0.00024923,2]
[372400183,1752627040831,-500.0,0.00024932,2]
[372400184,1752627040840,-1194.71182285,0.00024956,2]
[372400185,1752627040850,-500.0,0.00024959,2]
[372400186,1752627040860,-648.63,0.0002497,3]
[372400187,1752627040870,-533232.64076582,0.0002497,2]
[372400188,1752627040938,-4230.1390696,0.0002497,2]
[372400189,1752627041330,300.0,0.000255,120]
[372400202,1752627043436,-3100.0,0.0002497,2]
[372400242,1752627046639,-407.0,0.00023771,2]
[372400244,1752627046649,-23229.46824751,0.0002474,2]
[372400245,1752627046660,-4263.84190401,0.0002474,2]
[372400246,1752627053986,257.89,0.000255,120]
[372400247,1752627062270,270.22417738,0.000255,120]
[372400248,1752627067946,300.0,0.000255,120]
[372400255,1752627906326,205.016027,0.00013699,2]
[372400256,1752627948127,-255.0,0.00019607,2]
[372400257,1752627948149,-666.0,0.00019795,2]
[372400258,1752627948170,-2010.35104184,0.00019962,2]
[372400259,1752627948191,-15.49771719,0.00019962,2]
[372400260,1752627955093,-429.37023987,0.00019962,2]
[372400261,1752627955116,-205.016027,0.00020187,2]
[372400262,1752627955145,-202.18805607,0.00020708,2]
[372400263,1752627955168,-362.4951795,0.00020709,2]
[372400264,1752627955194,-215.50840239,0.00020725,2]
[372400265,1752627955219,-160.0,0.00020725,2]
[372400266,1752627955245,-249.42335083,0.00020799,2]
[372400268,1752628034190,-249.77999184,0.00020702,2]
[372400269,1752628034212,-950.57664917,0.00020799,2]
[372400270,1752628034233,-53.02446904,0.00020799,2]
[372400271,1752628038175,-246.97553096,0.00020799,2]
[372400272,1752628038196,-300.0,0.000208,2]
[372400273,1752628038217,-300.0,0.000208,2]
[372400274,1752628038237,-300.0,0.000208,2]
[372400275,1752628038257,-300.0,0.000208,2]
[372400276,1752628038277,-1200.0,0.000208,2]
[372400277,1752628038298,-616.27494362,0.000208,2]
[372400278,1752628038321,-500.0,0.000208,2]
[372400279,1752628038342,-500.0,0.000208,2]
[372400280,1752628038365,-500.0,0.000208,2]
[372400281,1752628038385,-500.0,0.000208,2]
[372400282,1752628038416,-500.0,0.000208,2]
[372400283,1752628038437,-500.0,0.000208,2]
[372400284,1752628038460,-500.0,0.000208,2]
[372400285,1752628038488,-500.0,0.000208,2]
[372400286,1752628038511,-500.0,0.000208,2]
[372400287,1752628038531,-500.0,0.000208,2]
[372400288,1752628038552,-500.0,0.000208,2]
[372400289,1752628038572,-500.0,0.000208,2]
[372400290,1752628038593,-317.81876034,0.000208,2]
[372400291,1752628038614,-500.0,0.000208,2]
[372400292,1752628038635,-390.55436166,0.000208,2]
[372400293,1752628046099,-109.44563834,0.000208,2]
[372400294,1752628046239,-274.44071812,0.000208,2]
[372400295,1752628046260,-513.96808216,0.000208,2]
[372400296,1752628046282,-300.0,0.000208,2]
[372400297,1752628046306,-1362.57,0.00020801,10]
[372400298,1752628046328,-6557.55716172,0.00020801,2]
[372400299,1752628053083,-1020.19086182,0.00020801,2]
[372400300,1752628080117,1299.97,0.0002553,120]
[372400330,1752628232507,-1107.22355789,0.000189,2]
[372400331,1752628232517,-255.94534867,0.00020716,2]
[372400332,1752628232527,-300.0,0.00020799,2]
[372400333,1752628232536,-300.0,0.00020799,2]
[372400334,1752628232545,-300.0,0.00020799,2]
[372400335,1752628232555,-1200.0,0.00020799,2]
[372400337,1752628232565,-460.85723867,0.000208,2]
[372400339,1752628232574,-460.0,0.000208,2]
[372400341,1752628232583,-460.0,0.000208,2]
[372400343,1752628232593,-460.0,0.000208,2]
[372400344,1752628232602,-460.0,0.000208,2]
[372400345,1752628232612,-460.0,0.000208,2]
[372400346,1752628232621,-460.0,0.000208,2]
[372400348,1752628232631,-460.0,0.000208,2]
[372400350,1752628232642,-460.0,0.000208,2]
[372400353,1752628232652,-460.0,0.000208,2]
[372400355,1752628232662,-460.0,0.000208,2]
[372400356,1752628232671,-460.0,0.000208,2]
[372400357,1752628232680,-460.0,0.000208,2]
[372400358,1752628232690,-460.0,0.000208,2]
[372400359,1752628232699,-460.0,0.000208,2]
[372400360,1752628232709,-460.0,0.000208,2]
[372400361,1752628232718,-460.0,0.000208,2]
[372400362,1752628232727,-460.0,0.000208,2]
[372400363,1752628232736,-460.0,0.000208,2]
[372400364,1752628232746,-1135.47,0.000208,10]
[372400365,1752628232756,-200.0,0.00020801,2]
[372400366,1752628232765,-441.77260675,0.00020801,2]
[372400367,1752628232774,-460.0,0.00020801,2]
[372400368,1752628232784,-460.0,0.00020801,2]
[372400369,1752628232793,-460.0,0.00020801,2]
[372400370,1752628232802,-460.0,0.00020801,2]
[372400371,1752628232811,-460.0,0.00020801,2]
[372400372,1752628232821,-462.03,0.00020801,2]
[372400373,1752628232831,-42422.25197646,0.00020802,2]
[372400374,1752628232841,-460.0,0.00020802,2]
[372400375,1752628232850,-460.0,0.00020802,2]
[372400376,1752628232860,-460.0,0.00020802,2]
[372400377,1752628232869,-460.0,0.00020802,2]
[372400378,1752628232881,-419.97,0.00020802,2]
[372400379,1752628232891,-460.0,0.00020802,2]
[372400380,1752628232901,-460.0,0.00020802,2]